fUST/lending_fUST_20250705
["ID","MTS","AMOUNT","RATE_DAILY","PERIOD"]
[369765849,1751721076042,-479.5,0.00021643,2]
[369765850,1751721076053,-5048.11,0.00021643,2]
[369765851,1751721076063,-460.0,0.00021643,2]
[369765852,1751721076072,-2254.67,0.00021643,2]
[369765853,1751721076082,-7943.53,0.00021643,2]
[369765854,1751721076092,-364.49966,0.00021643,2]
[369765855,1751721076103,-460.0,0.00021643,2]
[369765856,1751721076112,-460.0,0.00021643,2]
[369765857,1751721076122,-364.49966,0.00021643,2]
[369765858,1751721076133,-460.0,0.00021643,2]
[369765859,1751721076145,-460.0,0.00021643,2]
[369765860,1751721076156,-460.0,0.00021643,2]
[369765861,1751721076166,-460.0,0.00021643,2]
[369765862,1751721076175,-460.0,0.00021643,2]
[369765863,1751721076186,-679.18,0.00021643,2]
[369765864,1751721076196,-1069.14,0.00021643,2]
[369765865,1751721076207,-662.99,0.00021643,2]
[369765866,1751721076217,-531.619445,0.00021643,2]
[369765867,1751721076227,-4189.72,0.00021643,2]
[369765868,1751721076238,-460.0,0.00021643,2]
[369765869,1751721076247,-1029.23,0.00021643,2]
[369765870,1751721076257,-460.0,0.00021643,2]
[369765871,1751721076268,-531.619445,0.00021643,2]
[369765872,1751721076278,-460.0,0.00021643,2]
[369765873,1751721076293,-460.0,0.00021643,2]
[369765874,1751721076304,-460.0,0.00021643,2]
[369765875,1751721076313,-460.0,0.00021643,2]
[369765876,1751721076323,-460.0,0.00021643,2]
[369765877,1751721076333,-193.461392,0.00021643,2]
[369765878,1751721076343,-2585.72,0.00021643,2]
[369765879,1751721076354,-1163.78,0.00021643,2]
[369765880,1751721076365,-193.461392,0.00021643,2]
[369765881,1751721076376,-3838.69,0.00021643,2]
[369765882,1751721076385,-498.69,0.00021643,2]
[369765883,1751721076395,-460.0,0.00021643,2]
[369765884,1751721076406,-460.0,0.00021643,2]
[369765885,1751721076415,-3395.42,0.00021643,2]
[369765886,1751721076426,-709.77,0.00021643,2]
[369765887,1751721076436,-460.0,0.00021643,2]
[369765888,1751721076446,-460.0,0.00021643,2]
[369765889,1751721076456,-560.08,0.00021643,2]
[369765890,1751721076466,-460.0,0.00021643,2]
[369765891,1751721076476,-460.0,0.00021643,2]
[369765892,1751721076485,-460.0,0.00021643,2]
[369765893,1751721076495,-2248.5,0.00021643,2]
[369765894,1751721076504,-460.0,0.00021643,2]
[369765895,1751721076516,-525.81,0.00021643,2]
[369765896,1751721076528,-2372.17,0.00021643,2]
[369765897,1751721076538,-644.72,0.00021643,2]
[369765898,1751721076548,-900.96,0.00021643,2]
[369765899,1751721076558,-11199.79,0.00021643,2]
[369765900,1751721076569,-697.04,0.00021643,2]
[369765901,1751721076579,-1584.75,0.00021643,2]
[369765902,1751721076589,-460.0,0.00021643,2]
[369765903,1751721076598,-460.0,0.00021643,2]
[369765904,1751721076608,-660.4,0.00021643,2]
[369765905,1751721076618,-10263.15,0.00021643,2]
[369765906,1751721076628,-637.37,0.00021643,2]
[369765907,1751721076637,-559.58,0.00021643,2]
[369765908,1751721076647,-1732.45,0.00021643,2]
[369765909,1751721076656,-460.0,0.00021643,2]
[369765910,1751721076666,-1304.19,0.00021643,2]
[369765911,1751721076676,-187.577716,0.00021643,2]
[369765912,1751721076685,-460.0,0.00021643,2]
[369765913,1751721076695,-973.5,0.00021643,2]
[369765914,1751721076704,-460.0,0.00021643,2]
[369765915,1751721076714,-4814.61,0.00021643,2]
[369765916,1751721076723,-187.577716,0.00021643,2]
[369765917,1751721076733,-460.0,0.00021643,2]
[369765918,1751721076742,-1599.55,0.00021643,2]
[369765919,1751721076751,-460.0,0.00021643,2]
[369765920,1751721076761,-514.12,0.00021643,2]
[369765921,1751721076770,-137.61447257,0.00021643,2]
[369765922,1751721077369,-460.0,0.00019178,2]
[369765923,1751721077379,-460.0,0.00019178,2]
[369765924,1751721077389,-603.25,0.00019178,2]
[369765925,1751721077398,-460.0,0.00019452,2]
[369765926,1751721077407,-460.0,0.0002,2]
[369765927,1751721077417,-4026.07,0.00020273,2]
[369765928,1751721077426,-4026.07,0.00020547,2]
[369765929,1751721077435,-4026.07,0.00020821,2]
[369765930,1751721077444,-4026.07,0.00021095,2]
[369765931,1751721077453,-4026.07,0.00021369,2]
[369765932,1751721077463,-835.94552743,0.00021643,2]
[369765933,1751721077472,-572.31,0.00021643,2]
[369765934,1751721077482,-485.31,0.00021643,2]
[369765935,1751721077491,-2742.75,0.00021643,2]
[369765936,1751721077500,-3855.89,0.00021643,2]
[369765937,1751721077510,-802.19,0.00021643,2]
[369765938,1751721077520,-1728.61,0.00021643,2]
[369765939,1751721077530,-8078.38,0.00021643,2]
[369765940,1751721077540,-627.96,0.00021643,2]
[369765941,1751721077550,-701.36,0.00021643,2]
[369765942,1751721077561,-460.0,0.00021643,2]
[369765943,1751721077570,-508.33,0.00021643,2]
[369765944,1751721077579,-460.0,0.00021643,2]
[369765945,1751721077588,-460.0,0.00021643,2]
[369765946,1751721077597,-460.0,0.00021643,2]
[369765947,1751721077607,-460.0,0.00021643,2]
[369765948,1751721077617,-460.0,0.00021643,2]
[369765949,1751721077626,-1283.87,0.00021643,2]
[369765950,1751721077635,-460.0,0.00021643,2]
[369765951,1751721077645,-893.91,0.00021643,2]
[369765952,1751721077656,-460.0,0.00021643,2]
[369765953,1751721077665,-460.0,0.00021643,2]
[369765954,1751721077674,-641.57,0.00021643,2]
[369765955,1751721077683,-463.17597712,0.00021643,2]
[369765956,1751721077693,-523.55,0.00021643,2]
[369765957,1751721077703,-477.68,0.00021643,2]
[369765958,1751721077712,-2923.74,0.00021643,2]
[369765959,1751721077721,-460.0,0.00021643,2]
[369765960,1751721077881,-504.5,0.00021643,2]
[369765961,1751721077892,-970.52,0.00021643,2]
[369765962,1751721077901,-460.0,0.00021643,2]
[369765963,1751721077911,-4026.07,0.00021643,2]
[369765964,1751721077922,-5000.0,0.00021644,2]
[369765965,1751721077931,-5000.0,0.00021644,2]
[369765966,1751721077941,-5000.0,0.00021644,2]
[369765967,1751721077953,-5000.0,0.00021644,2]
[369765968,1751721077963,-5000.0,0.00021644,2]
[369765969,1751721077975,-5000.0,0.00021644,2]
[369765970,1751721077985,-151.0,0.00021644,2]
[369765971,1751721077995,-151.0,0.00021644,2]
[369765972,1751721078004,-151.0,0.00021644,2]
[369765973,1751721078014,-297.0,0.00021644,5]
[369765974,1751721078023,-5000.0,0.00021671,2]
[369765975,1751721078033,-4552.0,0.0002168,2]
[369765976,1751721078042,-310.0,0.00021682,2]
[369765977,1751721078052,-193.492751,0.00021729,2]
[369765978,1751721078061,-600.0,0.00021738,2]
[369765979,1751721078070,-602.369308,0.00021747,4]
[369765980,1751721078080,-310.0,0.00021755,2]
[369765981,1751721078089,-168.406886,0.00021759,2]
[369765982,1751721078099,-206.0,0.0002177,2]
[369765983,1751721078108,-160.534433,0.0002178,2]
[369765984,1751721078118,-587.0,0.00021789,2]
[369765985,1751721078127,-166.49643125,0.00021808,2]
[369765986,1751721078137,-281.68046082,0.00021817,2]
[369765987,1751721078146,-193.492751,0.00021821,2]
[369765988,1751721078158,-204.99303721,0.00021823,6]
[369765989,1751721078168,-310.0,0.0002183,2]
[369765990,1751721078177,-500.0,0.00021831,2]
[369765991,1751721078186,-405.48418504,0.00021831,2]
[369765992,1751721078196,-500.0,0.00021831,2]
[369765993,1751721078205,-297.0,0.00021858,5]
[369765994,1751721078214,-6479.17777182,0.00021866,2]
[369765995,1751721078224,-732.5245476,0.0002189,2]
[369765996,1751721078233,-2341.89567653,0.00021912,2]
[369765997,1751721078243,-1000.0,0.00021912,2]
[369765998,1751721078252,-193.492751,0.00021914,2]
[369765999,1751721078261,-500.0,0.00021916,10]
[369766000,1751721078271,-500.37527667,0.00021916,10]
[369766001,1751721078280,-460.0,0.00021917,2]
[369766002,1751721078290,-460.0,0.00021917,2]
[369766003,1751721078299,-460.0,0.00021917,2]
[369766004,1751721078309,-151.0,0.00021917,2]
[369766005,1751721078318,-460.0,0.00021917,2]
[369766006,1751721078327,-460.0,0.00021917,2]
[369766007,1751721078337,-460.0,0.00021917,2]
[369766008,1751721078346,-460.0,0.00021917,2]
[369766009,1751721078356,-460.0,0.00021917,2]
[369766010,1751721078365,-151.0,0.00021917,2]
[369766011,1751721078373,-151.0,0.00021917,2]
[369766012,1751721078381,-460.0,0.00021917,2]
[369766013,1751721078389,-460.0,0.00021917,2]
[369766014,1751721078398,-460.0,0.00021917,2]
[369766015,1751721078407,-460.0,0.00021917,2]
[369766016,1751721078416,-460.0,0.00021917,2]
[369766017,1751721078426,-460.0,0.00021917,2]
[369766018,1751721078436,-348.95,0.00021917,2]
[369766019,1751721078445,-460.0,0.00021917,2]
[369766020,1751721078454,-545.68,0.00021917,2]
[369766021,1751721078464,-522.94,0.00021917,2]
[369766022,1751721078473,-460.0,0.00021917,2]
[369766023,1751721078482,-460.0,0.00021917,2]
[369766024,1751721078491,-1210.27,0.00021917,2]
[369766025,1751721078501,-687.52,0.00021917,2]
[369766026,1751721078511,-460.0,0.00021917,2]
[369766027,1751721078520,-460.0,0.00021917,2]
[369766028,1751721078530,-152.01831116,0.00021917,2]
[369766029,1751721078540,-460.0,0.00021917,2]
[369766030,1751721078550,-596.66253796,0.00021917,2]
[369766031,1751721078560,-460.0,0.00021917,2]
[369766032,1751721078570,-320.96,0.00021917,2]
[369766033,1751721078580,-460.0,0.00021917,2]
[369766034,1751721078590,-460.0,0.00021917,2]
[369766035,1751721078600,-460.0,0.00021917,2]
[369766036,1751721078610,-460.0,0.00021917,2]
[369766037,1751721078619,-460.0,0.00021917,2]
[369766038,1751721078628,-460.0,0.00021917,2]
[369766039,1751721078637,-460.0,0.00021917,2]
[369766040,1751721078646,-460.0,0.00021917,2]
[369766041,1751721078657,-460.0,0.00021917,2]
[369766042,1751721078666,-460.0,0.00021917,2]
[369766043,1751721078675,-963.22,0.00021917,2]
[369766044,1751721078686,-151.0,0.00021917,2]
[369766045,1751721078695,-460.0,0.00021917,2]
[369766046,1751721078704,-460.0,0.00021917,2]
[369766047,1751721078714,-460.0,0.00021917,2]
[369766048,1751721078723,-460.0,0.00021917,2]
[369766049,1751721078733,-460.0,0.00021917,2]
[369766050,1751721078743,-622.77,0.00021917,2]
[369766051,1751721078752,-460.0,0.00021917,2]
[369766052,1751721078762,-460.0,0.00021917,2]
[369766053,1751721078774,-460.0,0.00021917,2]
[369766054,1751721078784,-238.403389,0.00021917,2]
[369766055,1751721078794,-552.6,0.00021917,2]
[369766056,1751721078803,-238.403389,0.00021917,2]
[369766057,1751721078812,-460.0,0.00021917,2]
[369766058,1751721078822,-538.94,0.00021917,2]
[369766059,1751721078831,-151.0,0.00021917,2]
[369766060,1751721078840,-460.0,0.00021917,2]
[369766061,1751721078850,-460.0,0.00021917,2]
[369766062,1751721078859,-460.0,0.00021917,2]
[369766063,1751721078869,-925.19,0.00021917,2]
[369766064,1751721078878,-548.35,0.00021917,2]
[369766065,1751721078887,-460.0,0.00021917,2]
[369766066,1751721078896,-460.0,0.00021917,2]
[369766067,1751721078906,-460.0,0.00021917,2]
[369766068,1751721078916,-460.0,0.00021917,2]
[369766069,1751721078925,-460.0,0.00021917,2]
[369766070,1751721078935,-460.0,0.00021917,2]
[369766071,1751721078944,-460.0,0.00021917,2]
[369766072,1751721078953,-710.67,0.00021917,2]
[369766073,1751721078962,-460.0,0.00021917,2]
[369766074,1751721078971,-460.0,0.00021917,2]
[369766075,1751721078981,-556.92,0.00021917,2]
[369766076,1751721078991,-460.0,0.00021917,2]
[369766077,1751721079001,-460.0,0.00021917,2]
[369766078,1751721079010,-460.0,0.00021917,2]
[369766079,1751721079020,-460.0,0.00021917,2]
[369766080,1751721079029,-460.0,0.00021917,2]
[369766081,1751721079038,-460.0,0.00021917,2]
[369766082,1751721079048,-460.0,0.00021917,2]
[369766083,1751721079057,-476.09,0.00021917,2]
[369766084,1751721079067,-500.0,0.00021917,2]
[369766085,1751721079076,-500.0,0.00021917,2]
[369766086,1751721079086,-500.0,0.00021917,2]
[369766087,1751721079095,-500.0,0.00021917,2]
[369766088,1751721079105,-460.0,0.00021917,2]
[369766089,1751721079114,-460.0,0.00021917,2]
[369766090,1751721079124,-591.66,0.00021917,2]
[369766091,1751721079134,-460.0,0.00021917,2]
[369766092,1751721079143,-460.0,0.00021917,2]
[369766093,1751721079153,-460.0,0.00021917,2]
[369766094,1751721079164,-519.85292996,0.00021917,2]
[369766095,1751721079174,-1596.43,0.00021917,2]
[369766096,1751721079183,-517.64,0.00021917,2]
[369766097,1751721079193,-1080.05,0.00021917,2]
[369766098,1751721079203,-460.0,0.00021917,2]
[369766099,1751721079212,-503.61,0.00021917,2]
[369766100,1751721079222,-460.0,0.00021917,2]
[369766101,1751721079232,-460.0,0.00021917,2]
[369766102,1751721079242,-726.57,0.00021917,2]
[369766103,1751721079252,-460.0,0.00021917,2]
[369766104,1751721079262,-460.0,0.00021917,2]
[369766105,1751721079271,-460.0,0.00021917,2]
[369766106,1751721079281,-460.0,0.00021917,2]
[369766107,1751721079290,-595.81726519,0.00021917,2]
[369766108,1751721079299,-460.0,0.00021917,2]
[369766109,1751721079309,-460.0,0.00021917,2]
[369766110,1751721079318,-1216.59,0.00021917,2]
[369766111,1751721079328,-471.33,0.00021917,2]
[369766112,1751721079337,-460.0,0.00021917,2]
[369766113,1751721079347,-644.53,0.00021917,2]
[369766114,1751721079356,-460.0,0.00021917,2]
[369766115,1751721079365,-460.0,0.00021917,2]
[369766116,1751721079375,-460.0,0.00021917,2]
[369766117,1751721079384,-1557.5,0.00021917,2]
[369766118,1751721079395,-460.0,0.00021917,2]
[369766119,1751721079406,-460.0,0.00021917,2]
[369766120,1751721079415,-460.0,0.00021917,2]
[369766121,1751721079425,-460.0,0.00021917,2]
[369766122,1751721079435,-555.5,0.00021917,2]
[369766123,1751721079444,-1370.86,0.00021917,2]
[369766124,1751721079454,-500.48,0.00021917,2]
[369766125,1751721079464,-460.0,0.00021917,2]
[369766126,1751721079474,-1347.08,0.00021917,2]
[369766127,1751721079484,-466.74,0.00021917,2]
[369766128,1751721079494,-4601.49,0.00021917,2]
[369766129,1751721079503,-452.85,0.00021917,2]
[369766130,1751721079512,-1597.36,0.00021917,2]
[369766131,1751721079521,-1464.28,0.00021917,2]
[369766132,1751721079532,-460.0,0.00021917,2]
[369766133,1751721079541,-460.0,0.00021917,2]
[369766134,1751721079551,-4875.51,0.00021917,2]
[369766135,1751721079560,-2467.61,0.00021917,2]
[369766136,1751721079570,-460.0,0.00021917,2]
[369766137,1751721079580,-553.63,0.00021917,2]
[369766138,1751721079590,-460.0,0.00021917,2]
[369766139,1751721079600,-460.0,0.00021917,2]
[369766140,1751721079610,-460.0,0.00021917,2]
[369766141,1751721079620,-460.0,0.00021917,2]
[369766142,1751721079629,-460.0,0.00021917,2]
[369766143,1751721079638,-179.578221,0.00021917,2]
[369766144,1751721079648,-460.0,0.00021917,2]
[369766145,1751721079658,-460.0,0.00021917,2]
[369766146,1751721079668,-4457.69,0.00021917,2]
[369766147,1751721079680,-959.85,0.00021917,2]
[369766148,1751721079690,-460.0,0.00021917,2]
[369766149,1751721079701,-460.0,0.00021917,2]
[369766150,1751721079710,-460.0,0.00021917,2]
[369766151,1751721079719,-179.578221,0.00021917,2]
[369766152,1751721079728,-479.5,0.00021917,2]
[369766153,1751721079738,-5048.11,0.00021917,2]
[369766154,1751721079748,-460.0,0.00021917,2]
[369766155,1751721079757,-2254.67,0.00021917,2]
[369766156,1751721079767,-7943.53,0.00021917,2]
[369766157,1751721079782,-460.0,0.00021917,2]
[369766158,1751721079791,-525.3004016,0.00021917,2]
[369766159,1751721079802,-460.0,0.00021917,2]
[369766160,1751721079812,-460.0,0.00021917,2]
[369766161,1751721079823,-460.0,0.00021917,2]
[369766162,1751721079833,-460.0,0.00021917,2]
[369766163,1751721079842,-460.0,0.00021917,2]
[369766164,1751721079854,-679.18,0.00021917,2]
[369766165,1751721079864,-1069.14,0.00021917,2]
[369766166,1751721079874,-662.99,0.00021917,2]
[369766167,1751721079883,-531.619445,0.00021917,2]
[369766168,1751721079893,-4189.72,0.00021917,2]
[369766169,1751721079903,-460.0,0.00021917,2]
[369766170,1751721079912,-1029.23,0.00021917,2]
[369766171,1751721079922,-460.0,0.00021917,2]
[369766172,1751721079931,-531.619445,0.00021917,2]
[369766173,1751721079941,-460.0,0.00021917,2]
[369766174,1751721079950,-460.0,0.00021917,2]
[369766175,1751721079960,-460.0,0.00021917,2]
[369766176,1751721079970,-460.0,0.00021917,2]
[369766177,1751721079979,-460.0,0.00021917,2]
[369766178,1751721079989,-193.461392,0.00021917,2]
[369766179,1751721079999,-2585.72,0.00021917,2]
[369766180,1751721080008,-1163.78,0.00021917,2]
[369766181,1751721080018,-193.461392,0.00021917,2]
[369766182,1751721080027,-3838.69,0.00021917,2]
[369766183,1751721080036,-498.69,0.00021917,2]
[369766184,1751721080045,-460.0,0.00021917,2]
[369766185,1751721080055,-460.0,0.00021917,2]
[369766186,1751721080064,-3395.42,0.00021917,2]
[369766187,1751721080074,-460.0,0.00021917,2]
[369766188,1751721080083,-709.77,0.00021917,2]
[369766189,1751721080092,-460.0,0.00021917,2]
[369766190,1751721080102,-560.08,0.00021917,2]
[369766191,1751721080111,-460.0,0.00021917,2]
[369766192,1751721080121,-460.0,0.00021917,2]
[369766193,1751721080130,-460.0,0.00021917,2]
[369766194,1751721080139,-2248.5,0.00021917,2]
[369766195,1751721080148,-372.91149484,0.00021917,2]
[369766196,1751721080157,-525.81,0.00021917,2]
[369766197,1751721080167,-2372.17,0.00021917,2]
[369766198,1751721080176,-644.72,0.00021917,2]
[369766199,1751721080186,-900.96,0.00021917,2]
[369766200,1751721080195,-11199.79,0.00021917,2]
[369766201,1751721080205,-697.04,0.00021917,2]
[369766202,1751721080214,-1584.75,0.00021917,2]
[369766203,1751721080224,-460.0,0.00021917,2]
[369766204,1751721080234,-460.0,0.00021917,2]
[369766205,1751721080243,-660.4,0.00021917,2]
[369766206,1751721080253,-10263.15,0.00021917,2]
[369766207,1751721080262,-637.37,0.00021917,2]
[369766208,1751721080271,-559.58,0.00021917,2]
[369766209,1751721080283,-1732.45,0.00021917,2]
[369766210,1751721080293,-460.0,0.00021917,2]
[369766211,1751721080302,-1304.19,0.00021917,2]
[369766212,1751721080312,-460.0,0.00021917,2]
[369766213,1751721080322,-973.5,0.00021917,2]
[369766214,1751721080331,-460.0,0.00021917,2]
[369766215,1751721080341,-187.577716,0.00021917,2]
[369766216,1751721080351,-4814.61,0.00021917,2]
[369766217,1751721080361,-187.577716,0.00021917,2]
[369766218,1751721080370,-460.0,0.00021917,2]
[369766219,1751721080380,-1599.55,0.00021917,2]
[369766220,1751721080390,-460.0,0.00021917,2]
[369766221,1751721080400,-514.12,0.00021917,2]
[369766222,1751721080410,-973.56,0.00021917,2]
[369766223,1751721080419,-572.31,0.00021917,2]
[369766224,1751721080429,-485.31,0.00021917,2]
[369766225,1751721080438,-2742.75,0.00021917,2]
[369766226,1751721080447,-3855.89,0.00021917,2]
[369766227,1751721080457,-802.19,0.00021917,2]
[369766228,1751721080467,-1728.61,0.00021917,2]
[369766229,1751721080476,-8078.38,0.00021917,2]
[369766230,1751721080486,-627.96,0.00021917,2]
[369766231,1751721080496,-701.36,0.00021917,2]
[369766232,1751721080505,-460.0,0.00021917,2]
[369766233,1751721080515,-508.33,0.00021917,2]
[369766234,1751721080525,-460.0,0.00021917,2]
[369766235,1751721080534,-460.0,0.00021917,2]
[369766236,1751721080544,-460.0,0.00021917,2]
[369766237,1751721080554,-460.0,0.00021917,2]
[369766238,1751721080563,-460.0,0.00021917,2]
[369766239,1751721080573,-1283.87,0.00021917,2]
[369766240,1751721080582,-460.0,0.00021917,2]
[369766241,1751721080592,-893.91,0.00021917,2]
[369766242,1751721080601,-460.0,0.00021917,2]
[369766243,1751721080611,-460.0,0.00021917,2]
[369766244,1751721080621,-641.57,0.00021917,2]
[369766245,1751721080631,-523.55,0.00021917,2]
[369766246,1751721080640,-2923.74,0.00021917,2]
[369766247,1751721080649,-460.0,0.00021917,2]
[369766248,1751721080659,-504.5,0.00021917,2]
[369766249,1751721080669,-970.52,0.00021917,2]
[369766250,1751721080678,-477.68,0.00021917,2]
[369766251,1751721080688,-460.0,0.00021917,2]
[369766252,1751721080697,-4026.07,0.00021917,2]
[369766253,1751721080707,-151.0,0.00021918,2]
[369766254,1751721080716,-222.34959,0.00021918,2]
[369766255,1751721080725,-178.76862406,0.00021918,2]
[369766256,1751721080734,-200.0,0.00021918,2]
[369766257,1751721080882,-310.0,0.00021922,2]
[369766258,1751721080892,-310.0,0.00021932,2]
[369766259,1751721080902,-500.0,0.00021938,2]
[369766260,1751721080913,-586.80582773,0.00021938,2]
[369766261,1751721080922,-500.0,0.00021938,2]
[369766262,1751721080932,-366.5862663,0.00021955,2]
[369766263,1751721080942,-366.5862663,0.00021955,2]
[369766264,1751721080951,-366.5862663,0.00021955,2]
[369766265,1751721080962,-312.3469955,0.00021955,2]
[369766266,1751721080971,-600.0,0.00021962,2]
[369766267,1751721080981,-2500.0,0.00021964,2]
[369766268,1751721080990,-2500.0,0.00021964,2]
[369766269,1751721081000,-2500.0,0.00021964,2]
[369766270,1751721081010,-2500.0,0.00021964,2]
[369766271,1751721081019,-157.9142363,0.00021964,2]
[369766272,1751721081029,-580.72165485,0.00021964,2]
[369766273,1751721081039,-500.0,0.00021999,10]
[369766274,1751721081048,-750.0,0.00022,7]
[369766275,1751721081057,-131781.88,0.00022,7]
[369766276,1751721081066,-12325.2,0.00022,7]
[369766277,1751721081076,-151.0,0.00022,7]
[369766278,1751721081085,-151.0,0.00022,7]
[369766279,1751721081094,-151.0,0.00022,7]
[369766280,1751721081104,-151.0,0.00022,7]
[369766281,1751721081113,-151.0,0.00022,7]
[369766282,1751721081123,-958.0,0.00022,2]
[369766283,1751721081132,-958.0,0.00022,2]
[369766284,1751721081142,-958.0,0.00022,2]
[369766285,1751721081151,-958.0,0.00022,2]
[369766286,1751721081162,-958.0,0.00022,2]
[369766287,1751721081174,-958.0,0.00022,2]
[369766288,1751721081184,-958.0,0.00022,2]
[369766289,1751721081193,-958.0,0.00022,2]
[369766290,1751721081203,-958.0,0.00022,2]
[369766291,1751721081214,-958.0,0.00022,2]
[369766292,1751721081225,-151.0,0.00022,2]
[369766293,1751721081235,-151.0,0.00022,2]
[369766294,1751721081247,-151.0,0.00022,7]
[369766295,1751721081258,-151.0,0.00022,7]
[369766296,1751721081268,-282.045458,0.00022,7]
[369766297,1751721081277,-642.269192,0.00022,7]
[369766298,1751721081288,-1609.905523,0.00022,5]
[369766299,1751721081298,-151.0,0.00022,7]
[369766300,1751721081307,-151.0,0.00022,7]
[369766301,1751721081318,-151.0,0.00022,7]
[369766302,1751721081328,-160.0,0.00022,7]
[369766303,1751721081338,-151.0,0.00022,7]
[369766304,1751721081347,-259.025485,0.00022,7]
[369766305,1751721081357,-179.578221,0.00022,7]
[369766306,1751721081366,-179.578221,0.00022,7]
[369766307,1751721081375,-214.00689675,0.00022,7]
[369766308,1751721081385,-364.49966,0.00022,7]
[369766309,1751721081394,-364.49966,0.00022,7]
[369766310,1751721081404,-12580.16877015,0.00022,7]
[369766311,1751721081414,-193.492751,0.00022007,2]
[369766312,1751721081423,-206.0,0.0002201,2]
[369766313,1751721081433,-204.99303721,0.00022015,6]
[369766314,1751721081443,-531.619445,0.00022038,7]
[369766315,1751721081452,-531.619445,0.00022038,7]
[369766316,1751721081462,-193.461392,0.00022038,7]
[369766317,1751721081472,-193.461392,0.00022038,7]
[369766318,1751721081481,-1081.51,0.00022064,3]
[369766319,1751721081490,-297.0,0.00022072,5]
[369766320,1751721081500,-187.577716,0.00022089,7]
[369766321,1751721081509,-187.577716,0.00022089,7]
[369766322,1751721081518,-1000.0,0.00022089,2]
[369766323,1751721081528,-682.85648165,0.00022089,2]
[369766324,1751721081538,-688.6631262,0.00022089,2]
[369766325,1751721081547,-1000.0,0.000221,2]
[369766326,1751721081557,-154.25677466,0.00022151,2]
[369766327,1751721081566,-1081.51,0.00022164,3]
[369766328,1751721081576,-645.23067,0.00022186,2]
[369766329,1751721081586,-500.0,0.0002219,10]
[369766330,1751721081595,-460.0,0.00022191,2]
[369766331,1751721081604,-460.0,0.00022191,2]
[369766332,1751721081614,-460.0,0.00022191,2]
[369766333,1751721081623,-460.0,0.00022191,2]
[369766334,1751721081632,-460.0,0.00022191,2]
[369766335,1751721081642,-460.0,0.00022191,2]
[369766336,1751721081651,-460.0,0.00022191,2]
[369766337,1751721081661,-460.0,0.00022191,2]
[369766338,1751721081670,-151.0,0.00022191,7]
[369766339,1751721081679,-460.0,0.00022191,2]
[369766340,1751721081689,-460.0,0.00022191,2]
[369766341,1751721081698,-460.0,0.00022191,2]
[369766342,1751721081707,-460.0,0.00022191,2]
[369766343,1751721081717,-460.0,0.00022191,2]
[369766344,1751721081727,-460.0,0.00022191,2]
[369766345,1751721081736,-328.87,0.00022191,2]
[369766346,1751721081745,-460.0,0.00022191,2]
[369766347,1751721081755,-545.68,0.00022191,2]
[369766348,1751721081765,-522.94,0.00022191,2]